fUSD/lending_fUSD_20260130
["ID","MTS","AMOUNT","RATE_DAILY","PERIOD"]
[404033598,1769765432142,-151.0,0.00015721,2]
[404033599,1769765432151,-151.0,0.00015738,2]
[404033600,1769765432161,-150.0,0.00016022,2]
[404033601,1769765432170,-721.12765535,0.00016023,2]
[404033602,1769765432180,-367.52085088,0.00016023,2]
[404033603,1769765432190,-854.2589148,0.00016023,2]
[404033604,1769765432199,-151.0,0.00016023,2]
[404033605,1769765432208,-151.0,0.00016023,2]
[404033606,1769765432217,-151.0,0.00016023,2]
[404033607,1769765432226,-151.0,0.00016023,2]
[404033608,1769765432235,-151.0,0.00016023,2]
[404033609,1769765432245,-151.0,0.00016023,2]
[404033610,1769765432253,-151.0,0.00016023,2]
[404033611,1769765432262,-334.5472959,0.000161,2]
[404033612,1769765432271,-314.86,0.00016116,2]
[404033613,1769765432280,-1680.0,0.00016155,2]
[404033614,1769765432290,-5000.00052225,0.000162,5]
[404033615,1769765432299,-765.65131084,0.000163,2]
[404033616,1769765432311,-2637.44598493,0.000163,2]
[404033617,1769765432320,-151.0,0.00016399,2]
[404033618,1769765432330,-2831.0,0.000164,2]
[404033619,1769765432339,-1851.30513202,0.00016402,2]
[404033620,1769765432348,-164.84250389,0.00016402,2]
[404033621,1769765432357,-317.10901488,0.00016402,2]
[404033622,1769765432366,-398.1784832,0.00016402,2]
[404033623,1769765432375,-234.34771094,0.00016402,2]
[404033624,1769765432384,-195.01,0.0001647,2]
[404033625,1769765432393,-195.01,0.0001647,2]
[404033626,1769765432402,-405.84548364,0.00016479,2]
[404033627,1769765432412,-534.1547952,0.00016479,2]
[404033628,1769765432421,-2543.0,0.00016479,2]
[404033629,1769765432430,-24544.34674537,0.0001648,2]
[404033630,1769765432442,-52181.26531695,0.0001648,2]
[404033631,1769765432453,-1254.41808677,0.0001648,2]
[404033636,1769765437622,-301.76454383,0.0001648,2]
[404033637,1769765437681,-2298.90235692,0.0001648,2]
[404033638,1769765437692,-294.49298777,0.0001648,2]
[404033639,1769765437702,-448.19908146,0.0001648,2]
[404033640,1769765437878,-7219.60376223,0.0001648,2]
[404033730,1769765439755,-88335.4642333,0.0001648,2]
[404033731,1769765440019,-347.053942,0.0001648,2]
[404033746,1769765443292,-521.7277719,0.0001648,2]
[404033747,1769765443303,-766.03741227,0.0001648,2]
[404033749,1769765443348,-18563.55257279,0.0001648,2]
[404033750,1769765443360,-18931.8,0.0001648,2]
[404033751,1769765443459,-1908.95357177,0.0001648,2]
[404033752,1769765443470,-1003.34533572,0.0001648,2]
[404033753,1769765443481,-8432.85403011,0.0001648,2]
[404033798,1769765445951,-60131.10741145,0.0001648,2]
[404033802,1769765445976,-647.22640714,0.0001648,2]
[404033804,1769765445987,-409.14193754,0.0001648,2]
[404033806,1769765445998,-12703.48655946,0.0001648,2]
[404033808,1769765446136,-7750.0,0.0001648,2]
[404033812,1769766158245,3925.33,0.00012523,2]
[404033813,1769766158268,377.0,0.00012523,2]
[404033814,1769766233807,1699.99122559,0.00015,30]
[404033823,1769766631770,-166.66,0.00015452,2]
[404033824,1769766631779,-259.26452324,0.00015465,4]
[404033825,1769766631788,-259.26452323,0.00015678,4]
[404033826,1769766631797,-166.66,0.00015778,2]
[404033827,1769766631806,-151.0,0.00015847,2]
[404033828,1769766631816,-151.0,0.00015847,2]
[404033829,1769766631825,-151.0,0.00015848,2]
[404033830,1769766631834,-194.2,0.00015918,2]
[404033831,1769766631843,-1200.0,0.00015989,2]
[404033832,1769766631853,-1666.17461889,0.0001599,2]
[404033833,1769766631861,-253.68721188,0.0001599,2]
[404033834,1769766631870,-331.81540265,0.0001599,2]
[404033835,1769766631880,-205.05424702,0.0001599,2]
[404033836,1769766631889,-627.41495303,0.00015999,2]
[404033837,1769766631898,-300.0,0.00015999,2]
[404033838,1769766631907,-373.90835664,0.00015999,2]
[404033839,1769766631916,-803.47354201,0.00016,2]
[404033840,1769766631928,-290.05642929,0.00016,2]
[404033842,1769766631940,-7072.7823092,0.00016,2]
[404033843,1769766631951,-510.78051524,0.00016,2]
[404033844,1769766631963,-926.05527075,0.00016,2]
[404033845,1769766631974,-4208.02539024,0.00016,2]
[404033846,1769766631987,-872.66531044,0.00016,2]
[404033847,1769766632008,-4554.73846656,0.00016,2]
[404033848,1769766632019,-188960.419,0.00016,2]
[404033849,1769766632030,-4119.25,0.00016,2]
[404033850,1769766632041,-2701.61761818,0.00016,2]
[404033851,1769766632053,-1727.69940483,0.00016,2]
[404033852,1769766632064,-4328.06566314,0.00016,2]
[404033853,1769766632074,-596.61311656,0.00016,2]
[404033854,1769766632097,-2152.66125016,0.00016,2]
[404033855,1769766632108,-2062.13091084,0.00016,2]
[404033856,1769766632138,-835.19021143,0.00016,2]
[404033857,1769766632154,-567.05475244,0.00016,2]
[404033858,1769766632165,-14361.84713073,0.00016,2]
[404033859,1769766632176,-603.84235597,0.00016,2]
[404033860,1769766632195,-357.87831592,0.00016,2]
[404033863,1769766637836,-450.58499,0.00016,2]
[404033864,1769766637846,-846.33812054,0.00016,2]
[404033865,1769766637888,-12575.94917036,0.00016,2]
[404033866,1769766637997,-2510.8565844,0.00016,2]
[404033867,1769766638008,-5663.33055622,0.00016,2]
[404033868,1769766638019,-691.93282371,0.00016,2]
[404033997,1769766639948,-4065.58012154,0.00016,2]
[404033998,1769766639959,-7719.86392246,0.00016,2]
[404033999,1769766639970,-8572.04603097,0.00016,2]
[404034000,1769766640483,-2648.18888109,0.00016,2]
[404034001,1769766640495,-11220.23762744,0.00016,2]
[404034002,1769766640506,-36341.42234615,0.00016,2]
[404034003,1769766640517,-1668.8510257,0.00016,2]
[404034029,1769766643664,-151.0,0.00015884,2]
[404034030,1769766643674,-1157.51258046,0.00016,2]
[404034031,1769766643685,-395.73990055,0.00016,2]
[404034032,1769766644621,-18940.95936313,0.00016,2]
[404034033,1769766644632,-4643.03286084,0.00016,2]
[404034053,1769766646542,-412.5915978,0.00016,2]
[404034054,1769766646554,-11668.97243302,0.00016,2]
[404034055,1769766646565,-1803.42898507,0.00016,2]
[404034056,1769766646736,-619.08822853,0.00016,2]
[404034057,1769766646870,-3613.0383036,0.00016,2]
[404034058,1769766646886,-1036.5976,0.00016,2]
[404034059,1769766653247,282.34566815,0.00021,30]
[404034060,1769766847918,1386.094286,7.945e-05,2]
[404034067,1769767675875,150.0,0.000156,5]
[404034068,1769767831834,-1200.0,0.00014916,2]
[404034069,1769767831844,-22172.66,0.00014917,2]
[404034070,1769767831858,-1000.0,0.00015,2]
[404034071,1769767831868,-175.972188,0.00015,2]
[404034072,1769767831879,-923.99,0.00015207,2]
[404034073,1769767831889,-3240.0,0.00015207,2]
[404034074,1769767831899,-50.0,0.000156,5]
[404034075,1769767831908,-179.42246616,0.000156,2]
[404034076,1769767831918,-155.37925546,0.000156,2]
[404034077,1769767831928,-1156.60650541,0.00015616,2]
[404034078,1769767831938,-1499.55715692,0.00015624,2]
[404034079,1769767831948,-1156.60650541,0.00015671,2]
[404034080,1769767831958,-2053.979,0.0001568,2]
[404034081,1769767831968,-177.021,0.0001568,2]
[404034082,1769767831978,-664.05,0.0001569,2]
[404034083,1769767831987,-664.05,0.0001569,2]
[404034084,1769767831997,-664.05,0.0001569,2]
[404034085,1769767832007,-664.05,0.0001569,2]
[404034086,1769767832018,-664.05,0.0001569,2]
[404034087,1769767832027,-211.970065,0.00015699,2]
[404034088,1769767832037,-261.73584965,0.00015699,2]
[404034089,1769767832047,-500.0,0.00015699,2]
[404034090,1769767832057,-500.0,0.00015699,2]
[404034091,1769767832066,-500.0,0.00015699,2]
[404034092,1769767832077,-500.0,0.00015699,2]
[404034093,1769767832087,-500.0,0.00015699,2]
[404034094,1769767832096,-500.0,0.00015699,2]
[404034095,1769767832106,-364.84954158,0.00015699,2]
[404034096,1769767832115,-500.0,0.00015699,2]
[404034097,1769767832125,-500.0,0.00015699,2]
[404034098,1769767832135,-500.0,0.00015699,2]
[404034099,1769767832145,-500.0,0.00015699,2]
[404034100,1769767832155,-500.0,0.00015699,2]
[404034101,1769767832164,-500.0,0.00015699,2]
[404034102,1769767832174,-41075.72660743,0.000157,2]
[404034103,1769767832227,-355.00000001,0.000157,2]
[404034104,1769767832259,-106583.9427015,0.000157,2]
[404034105,1769767832271,-14668.84999278,0.000157,2]
[404034106,1769767832283,-434.30423461,0.000157,2]
[404034107,1769767832295,-1707.54897056,0.000157,2]
[404034112,1769767838010,-1875.93,0.000157,2]
[404034113,1769767838178,-18092.58172436,0.000157,2]
[404034114,1769767838190,-948.38,0.000157,2]
[404034115,1769767838212,-183357.66791139,0.000157,2]
[404034116,1769767838223,-68321.30375633,0.000157,2]
[404034322,1769767840235,-1419055.80429058,0.000157,2]
[404034337,1769767840373,-1013.52826101,0.000157,2]
[404034423,1769767843793,-276.51283555,0.000156,2]
[404034424,1769767843803,-582.36666916,0.000157,2]
[404034425,1769767843904,-1383.45496158,0.000157,2]
[404034426,1769767844764,-2023.85747976,0.000157,2]
[404034439,1769768345634,-290.0,0.0002,20]
[404034440,1769768345660,-150.6037866,0.0002,20]
[404034441,1769768524342,-300.0,0.00014716,2]
[404034442,1769768524368,-272.0,0.00014717,2]
[404034443,1769768524391,-428.0,0.00014717,2]
[404034444,1769768580913,-1000.0,0.00014716,2]
[404034445,1769768617106,-1000.0,0.00014617,2]
[404034446,1769768725881,1029.03756511,0.000108,2]
[404034447,1769768738182,5150.23477615,9e-05,2]
[404034448,1769768738220,6179.27234126,9e-05,2]
[404034449,1769768738258,3670.49288259,9e-05,2]
[404034450,1769768863496,2508.77945867,0.00013,2]
[404034451,1769768863524,1923.85974221,0.00013,2]
[404034452,1769768875438,166.66,0.00013943,2]
[404034453,1769768875541,166.66,0.00014236,2]
[404034454,1769768886265,816.23954548,0.000135,2]
[404034455,1769768948369,539.886745,7.945e-05,2]
[404034465,1769769032003,-166.66,0.0001453,2]
[404034468,1769769032012,-518.24508682,0.00014534,2]
[404034470,1769769032023,-497.76627144,0.00014534,2]
[404034475,1769769032058,-183.98864174,0.00014534,2]
[404034477,1769769032067,-300.0,0.00014534,2]
[404034479,1769769032077,-150.0,0.00014535,2]
[404034480,1769769032086,-150.0,0.00014535,2]
[404034481,1769769032095,-150.0,0.00014535,2]
[404034482,1769769032104,-150.0,0.00014535,2]
[404034483,1769769032114,-150.0,0.00014535,2]
[404034484,1769769032123,-500.0,0.00014535,2]
[404034485,1769769032132,-150.0,0.00014535,2]
[404034486,1769769032143,-150.0,0.00014535,2]
[404034487,1769769032152,-150.0,0.0001459,2]
[404034488,1769769032162,-500.0,0.0001459,2]
[404034489,1769769032170,-150.0,0.0001459,2]
[404034490,1769769032179,-150.0,0.0001459,2]
[404034491,1769769032188,-291.0,0.00014616,2]
[404034492,1769769032198,-154.52102506,0.00014617,2]
[404034493,1769769032207,-156.99465789,0.00014617,2]
[404034494,1769769032216,-200.0,0.00014645,2]
[404034495,1769769032225,-500.0,0.00014645,2]
[404034496,1769769032234,-200.0,0.00014645,2]
[404034497,1769769032244,-200.0,0.00014645,2]
[404034498,1769769032253,-500.0,0.00014699,2]
[404034499,1769769032263,-200.0,0.00014707,2]
[404034500,1769769032272,-151.0,0.00014707,2]
[404034501,1769769032282,-151.0,0.00014707,2]
[404034503,1769769032292,-151.0,0.00014707,2]
[404034505,1769769032302,-151.0,0.00014707,2]
[404034507,1769769032312,-151.0,0.00014707,2]
[404034509,1769769032321,-151.0,0.00014707,2]
[404034511,1769769032331,-151.0,0.00014707,2]
[404034512,1769769032340,-151.0,0.00014707,2]
[404034513,1769769032349,-151.0,0.00014707,2]
[404034514,1769769032359,-151.0,0.00014707,2]
[404034515,1769769032369,-151.0,0.00014707,2]
[404034517,1769769032378,-151.0,0.00014707,2]
[404034518,1769769032388,-222.78650516,0.00014707,2]
[404034519,1769769032397,-500.0,0.00014707,2]
[404034520,1769769032406,-500.0,0.00014707,2]
[404034521,1769769032415,-500.0,0.00014707,2]
[404034522,1769769032424,-500.0,0.00014707,2]
[404034523,1769769032433,-500.0,0.00014707,2]
[404034524,1769769032442,-500.0,0.00014707,2]
[404034525,1769769032452,-500.0,0.00014707,2]
[404034526,1769769032462,-500.0,0.00014707,2]
[404034527,1769769032471,-500.0,0.00014707,2]
[404034529,1769769032480,-500.0,0.00014707,2]
[404034531,1769769032489,-500.0,0.00014707,2]
[404034533,1769769032498,-206.24263098,0.00014707,2]
[404034535,1769769032508,-151.0,0.00014707,2]
[404034537,1769769032517,-500.0,0.00014707,2]
[404034539,1769769032526,-151.0,0.00014707,2]
[404034541,1769769032535,-151.0,0.00014707,2]
[404034543,1769769032544,-151.0,0.00014707,2]
[404034545,1769769032554,-151.0,0.00014707,2]
[404034547,1769769032563,-151.0,0.00014707,2]
[404034549,1769769032572,-151.0,0.00014707,2]
[404034551,1769769032582,-200.0,0.00014707,2]
[404034553,1769769032591,-151.0,0.00014707,2]
[404034555,1769769032603,-151.0,0.00014707,2]
[404034557,1769769032612,-151.0,0.00014707,2]
[404034559,1769769032621,-151.0,0.00014707,2]
[404034561,1769769032631,-500.0,0.00014707,2]
[404034563,1769769032641,-500.0,0.00014707,2]
[404034565,1769769032650,-500.0,0.00014707,2]
[404034567,1769769032660,-500.0,0.00014707,2]
[404034569,1769769032670,-500.0,0.00014707,2]
[404034571,1769769032679,-500.0,0.00014707,2]
[404034573,1769769032688,-500.0,0.00014707,2]
[404034575,1769769032697,-500.0,0.00014707,2]
[404034577,1769769032705,-500.0,0.00014707,2]
[404034579,1769769032714,-500.0,0.00014707,2]
[404034581,1769769032724,-500.0,0.00014707,2]
[404034583,1769769032733,-183.21509475,0.00014715,2]
[404034585,1769769032743,-1179719.694564,0.00014716,2]
[404034587,1769769032755,-86397.37525614,0.00014716,2]
[404034589,1769769032766,-42484.53450775,0.00014716,2]
[404034591,1769769032777,-164233.9384805,0.00014716,2]
[404034594,1769769032788,-6889.881243,0.00014716,2]
[404034596,1769769032800,-879.1913564,0.00014716,2]
[404034598,1769769032811,-2952.94751725,0.00014716,2]
[404034603,1769769032847,-1975.34666119,0.00014716,2]
[404034605,1769769032864,-2643.57054066,0.00014716,2]
[404034618,1769769032977,-2315.35846697,0.00014716,2]
[404034620,1769769032988,-953.31026791,0.00014716,2]
[404034622,1769769032999,-310.31,0.00014716,2]
[404034624,1769769033010,-9937.99188665,0.00014716,2]
[404034627,1769769033024,-1766.39692795,0.00014716,2]
[404034629,1769769033035,-1238.17356698,0.00014716,2]
[404034631,1769769033046,-297.82329601,0.00014716,2]
[404034633,1769769033056,-1068.07725392,0.00014716,2]
[404034635,1769769033067,-1848.75756851,0.00014716,2]
[404034640,1769769033101,-33180.83484181,0.00014716,2]
[404034642,1769769033112,-946.4836003,0.00014716,2]
[404034644,1769769033123,-839.1200196,0.00014716,2]
[404034700,1769769038202,-446.49837639,0.00014716,2]
[404034701,1769769038214,-903.93718342,0.00014716,2]
[404034702,1769769038256,-691.87040857,0.00014716,2]
[404034703,1769769038313,-419.12847376,0.00014716,2]
[404034704,1769769038325,-1911.74091694,0.00014716,2]
[404034706,1769769040131,-8903.80976662,0.00014716,2]
[404034707,1769769040412,-50167.22306018,0.00014716,2]
[404034708,1769769040424,-1059.44336652,0.00014716,2]
[404034709,1769769040435,-495.68719811,0.00014716,2]
[404034710,1769769040446,-1427.900885,0.00014716,2]
[404034711,1769769040468,-732.18335078,0.00014716,2]
[404034712,1769769040486,-765.93076401,0.00014716,2]
[404034713,1769769040496,-801.54783843,0.00014716,2]
[404034714,1769769040508,-412.755,0.00014716,2]
[404034715,1769769040518,-24806.97556144,0.00014716,2]
[404034716,1769769040529,-1227.58483994,0.00014716,2]
[404034717,1769769040540,-920.23629305,0.00014716,2]
[404034718,1769769040569,-760026.42889334,0.00014716,2]
[404034719,1769769040578,-4345.2305,0.00014717,2]
[404034720,1769769040587,-500.0,0.00014754,2]
[404034721,1769769040595,-164.48,0.00014772,2]
[404034722,1769769040604,-152.06,0.00014798,2]
[404034723,1769769040614,-376.42986293,0.00014809,2]
[404034724,1769769040623,-271.90901464,0.00014816,2]
[404034725,1769769040632,-500.0,0.00014816,2]
[404034726,1769769040641,-500.0,0.00014816,2]
[404034727,1769769040651,-500.0,0.00014816,2]
[404034728,1769769040660,-504.1508484,0.00014816,2]
[404034729,1769769040669,-500.0,0.00014816,2]
[404034730,1769769040679,-500.0,0.00014816,2]
[404034731,1769769040688,-500.0,0.00014816,2]
[404034732,1769769040698,-500.0,0.00014816,2]
[404034733,1769769040707,-198.84886007,0.00014816,2]
[404034734,1769769040716,-500.0,0.00014816,2]
[404034735,1769769040726,-500.0,0.00014816,2]
[404034736,1769769040735,-500.0,0.00014816,2]
[404034737,1769769040744,-503.01886942,0.00014816,2]
[404034738,1769769040753,-500.0,0.00014816,2]
[404034739,1769769040762,-500.0,0.00014816,2]
[404034740,1769769040772,-500.0,0.00014816,2]
[404034741,1769769040781,-500.0,0.00014816,2]
[404034742,1769769040790,-500.0,0.00014816,2]
[404034743,1769769040800,-500.0,0.00014816,2]
[404034744,1769769040810,-500.0,0.00014816,2]
[404034745,1769769040820,-500.0,0.00014816,2]
[404034746,1769769040829,-500.0,0.00014816,2]
[404034747,1769769040839,-500.0,0.00014816,2]
[404034748,1769769040850,-185.68,0.00014816,2]
[404034749,1769769040861,-294.55551423,0.00014816,2]
[404034750,1769769040870,-500.0,0.00014816,2]
[404034751,1769769040879,-500.0,0.00014816,2]
[404034752,1769769040888,-220.28127127,0.00014816,2]
[404034753,1769769040898,-500.0,0.00014816,2]
[404034754,1769769040907,-500.0,0.00014816,2]
[404034755,1769769040916,-500.0,0.00014816,2]
[404034756,1769769040927,-500.0,0.00014816,2]
[404034757,1769769040936,-500.0,0.00014816,2]
[404034758,1769769040945,-500.0,0.00014816,2]
[404034759,1769769040954,-500.0,0.00014816,2]
[404034760,1769769040963,-500.0,0.00014816,2]
[404034761,1769769040972,-500.0,0.00014816,2]
[404034762,1769769040981,-479.19347952,0.00014816,2]
[404034763,1769769040990,-355.21403355,0.00014816,2]
[404034764,1769769040999,-419.12847376,0.00014816,2]
[404034765,1769769041008,-271.3035718,0.00014816,2]
[404034766,1769769041017,-166.66,0.00014824,2]
[404034767,1769769041026,-305.97,0.00014887,2]
[404034768,1769769041035,-200.0,0.00014917,2]
[404034769,1769769041045,-156.99465786,0.00015086,2]
[404034770,1769769041053,-185.68,0.0001509,2]
[404034771,1769769041063,-570.27,0.000151,2]
[404034772,1769769041071,-1118.08,0.000151,2]
[404034773,1769769041080,-166.66,0.00015117,2]
[404034774,1769769041090,-500.0,0.00015189,2]
[404034775,1769769041099,-1110.74,0.000152,2]
[404034776,1769769041109,-559.33,0.000152,2]
[404034777,1769769041120,-207.46679937,0.00015244,2]
[404034778,1769769041131,-547.50816599,0.00015244,2]
[404034779,1769769041140,-185.68,0.00015364,2]
[404034780,1769769041149,-166.66,0.00015411,2]
[404034781,1769769041158,-185.0,0.00015454,2]
[404034782,1769769041167,-1185.0,0.00015468,2]
[404034783,1769769041176,-151.0,0.00015534,2]
[404034784,1769769041185,-156.99465786,0.00015555,2]
[404034785,1769769041194,-205.44,0.00015573,2]
[404034786,1769769041203,-202.94976952,0.000156,2]
[404034787,1769769041212,-1283.0,0.00015643,2]
[404034788,1769769041221,-727.0,0.00015674,2]
[404034789,1769769041230,-236.567596,0.00015688,2]
[404034790,1769769041239,-57924.9421053,0.00015689,2]
[404034791,1769769041248,-400.0,0.000157,5]
[404034792,1769769041257,-3004.39666815,0.00015711,2]
[404034793,1769769041267,-1156.60650541,0.00015726,2]
[404034794,1769769041276,-10076.80540011,0.0001575,2]
[404034795,1769769041285,-1156.60650541,0.00015781,2]
[404034796,1769769041294,-622.5575592,0.00015799,2]
[404034797,1769769041304,-600.0,0.000158,5]
[404034798,1769769041314,-1604.12,0.00015824,2]
[404034799,1769769041324,-200.0,0.00015859,2]
[404034800,1769769041334,-1156.60650541,0.00015863,2]
[404034801,1769769041343,-800.0,0.000159,5]
[404034802,1769769041356,-420.0,0.00015914,2]
[404034803,1769769041365,-1156.60650541,0.00015918,2]
[404034804,1769769041374,-1156.60650541,0.00015973,2]
[404034805,1769769041383,-670.73585146,0.00015983,2]
[404034806,1769769041392,-1680.0,0.00015987,2]
[404034807,1769769041401,-153.94607315,0.00016,2]
[404034808,1769769041410,-285.79091132,0.00016,2]
[404034809,1769769041419,-156.99465786,0.00016024,2]
[404034810,1769769041428,-150.0,0.00016037,2]
[404034811,1769769041437,-1156.60650541,0.00016055,2]
[404034812,1769769041447,-3004.39666815,0.00016076,2]
[404034813,1769769041455,-1156.60650541,0.0001611,2]
[404034814,1769769041465,-1156.60650541,0.00016164,2]
[404034815,1769769041474,-500.0,0.00016172,2]
[404034816,1769769041483,-202.94976949,0.00016175,2]
[404034817,1769769041492,-1156.60650541,0.00016219,2]
[404034818,1769769041500,-176.35,0.00016229,2]
[404034819,1769769041509,-1273.033,0.00016292,2]
[404034820,1769769041520,-218.736,0.00016292,2]
[404034821,1769769041530,-1208.946,0.00016292,2]
[404034822,1769769041541,-928.806,0.00016292,2]
[404034823,1769769041551,-3485.934,0.00016292,2]
[404034824,1769769041561,-1334.0,0.00016292,2]
[404034825,1769769041570,-5933.0,0.00016292,2]
[404034826,1769769041579,-1413.751,0.00016292,2]
[404034827,1769769041588,-1156.60650541,0.00016301,2]
[404034828,1769769041597,-1643.183,0.00016356,2]
[404034829,1769769041606,-177.022,0.00016356,2]
[404034830,1769769041615,-1000.0,0.00016368,2]
[404034831,1769769041625,-500.0,0.00016373,2]
[404034832,1769769041635,-500.0,0.00016373,2]
[404034833,1769769041646,-316.74242,0.00016373,2]
[404034834,1769769041655,-500.0,0.00016373,2]
[404034835,1769769041665,-284.09183855,0.00016438,2]
[404034836,1769769041674,-1999.0,0.00016438,2]
[404034837,1769769041684,-3004.39666815,0.00016441,2]
[404034838,1769769041694,-156.99465786,0.00016493,2]
[404034839,1769769041704,-721.12765535,0.00016497,2]
[404034840,1769769041713,-209.40437684,0.00016497,2]
[404034841,1769769041723,-322.6107,0.00016497,2]
[404034842,1769769041733,-854.2589148,0.00016497,2]
[404034843,1769769041744,-166.66,0.00016502,2]
[404034844,1769769041753,-168.0,0.0001653,2]
[404034845,1769769041763,-217.15233878,0.00016552,2]
[404034846,1769769041772,-186.21,0.00016576,7]
[404034847,1769769041781,-225.18697532,0.00016607,2]
[404034848,1769769041790,-2668.0,0.00016627,2]
[404034849,1769769041799,-233.51889341,0.00016662,2]
[404034850,1769769041809,-242.15909246,0.00016717,2]
[404034851,1769769041819,-163.0,0.0001672,2]
[404034852,1769769041829,-965.86930303,0.00016744,2]
[404034853,1769769041839,-1444.88271248,0.00016744,2]
[404034854,1769769041848,-1954.9728,0.00016744,2]
[404034855,1769769041861,-305.97,0.00016747,2]
[404034856,1769769041870,-202.94976949,0.0001675,2]
[404034857,1769769041879,-251.11897888,0.00016772,2]
[404034858,1769769041888,-3004.39666815,0.00016806,2]
[404034859,1769769041901,-260.4103811,0.00016827,2]
[404034860,1769769041909,-270.0455652,0.00016882,2]
[404034861,1769769041918,-280.03725112,0.00016937,2]
[404034862,1769769041928,-290.39862941,0.00016992,2]
[404034863,1769769041937,-250.0,0.00017,2]
[404034864,1769769041946,-885.86649465,0.00017045,2]
[404034865,1769769041956,-301.1433787,0.00017047,2]
[404034866,1769769041965,-195.0,0.00017074,2]
[404034867,1769769041974,-195.0,0.00017158,2]
[404034868,1769769041983,-151.0,0.0001717,2]
[404034869,1769769041993,-3004.39666815,0.0001717,2]
[404034870,1769769042002,-195.0,0.00017242,2]
[404034871,1769769042011,-202.94976949,0.00017325,2]
[404034872,1769769042022,-195.0,0.00017327,2]
[404034873,1769769042034,-166.66,0.0001741,2]
[404034874,1769769042045,-195.0,0.00017411,2]
[404034875,1769769042054,-587.0,0.00017425,2]
[404034876,1769769042063,-195.0,0.00017495,2]
[404034877,1769769042073,-3004.39666815,0.00017535,2]
[404034878,1769769042082,-195.0,0.00017579,2]
[404034879,1769769042091,-2351.0,0.00017586,2]
[404034880,1769769042100,-918.64355495,0.00017593,2]
[404034881,1769769042110,-1100.0,0.000176,6]
[404034882,1769769042119,-195.0,0.00017663,2]
[404034883,1769769042129,-12924.8016085,0.00017679,2]
[404034884,1769769042138,-200.0,0.000177,6]
[404034885,1769769042150,-168.0,0.00017708,2]
[404034886,1769769042159,-195.0,0.00017747,2]
[404034887,1769769042171,-200.0,0.000178,6]
[404034888,1769769042180,-195.0,0.00017832,2]
[404034889,1769769042189,-200.0,0.00017856,2]
[404034890,1769769042199,-334.5472959,0.00017866,2]
[404034891,1769769042208,-411.185,0.000179,3]
[404034892,1769769042218,-200.0,0.000179,6]
[404034893,1769769042228,-202.94976949,0.000179,2]
[404034894,1769769042237,-3004.39666815,0.000179,2]
[404034895,1769769042248,-165.52240046,0.000179,2]
[404034896,1769769042258,-195.0,0.00017916,2]
[404034897,1769769042267,-158.90099035,0.00017951,2]
[404034898,1769769042276,-500.0,0.00017973,2]
[404034899,1769769042286,-501.0040876,0.00017973,2]
[404034900,1769769042294,-500.0,0.00017973,2]
[404034901,1769769042304,-643.80866733,0.00017973,2]
[404034902,1769769042313,-500.0,0.00017973,2]
[404034903,1769769042322,-500.0,0.00017973,2]
[404034904,1769769042331,-500.0,0.00017973,2]
[404034905,1769769042340,-500.0,0.00017973,2]
[404034906,1769769042350,-500.0,0.00017973,2]
[404034907,1769769042361,-500.0,0.00017973,2]
[404034908,1769769042370,-500.0,0.00017973,2]
[404034909,1769769042379,-500.0,0.00017973,2]
[404034910,1769769042388,-500.0,0.00017973,2]
[404034911,1769769042398,-500.0,0.00017973,2]
[404034912,1769769042408,-160.23001291,0.00017973,2]
[404034913,1769769042416,-501.59358737,0.00017973,2]
[404034914,1769769042426,-160.13080306,0.00017973,2]
[404034915,1769769042435,-500.0,0.00017973,2]